bitfinex-derivatives/quotes_ETHF0:USTF0_20260131
["timestamp","ask_amount","ask_price","bid_price","bid_amount"]
[1769898506784,0.15434886,2415.7,2414.9,3.85022652]
[1769898506984,0.15434886,2415.7,2414.8,3.70055278]
[1769898507285,0.15434886,2415.7,2414.7,6.31974973]
[1769898507484,0.15434886,2415.7,2414.8,0.14967374]
[1769898507688,0.38847799,2415.8,2414.9,0.14967374]
[1769898507889,2.431,2416.1,2415.2,0.14967374]
[1769898508887,2.43608418,2416.1,2415.2,0.14967374]
[1769898509688,0.00508418,2416.1,2415.2,0.14967374]
[1769898509890,0.40118703,2416.1,2415.2,0.14967374]
[1769898510383,0.15434886,2416.2,2415.4,0.14967374]
[1769898511184,0.15870511,2416.2,2415.4,0.14967374]
[1769898512288,0.15434886,2416.1,2415.2,0.14967374]
[1769898515590,1.58956032,2416.0,2415.2,0.14967374]
[1769898515985,0.36591511,2416.2,2415.2,0.14967374]
[1769898516182,1.58956032,2415.7,2415.2,0.14967374]
[1769898517296,0.14919615,2415.6,2414.8,0.00499932]
[1769898519283,0.14919615,2415.6,2414.8,0.15391263]
[1769898521095,0.14919615,2415.6,2414.9,0.14891331]
[1769898521296,0.20725,2415.7,2414.9,4.15795284]
[1769898521492,0.20725,2415.7,2415.0,0.14891331]
[1769898521692,0.35705947,2415.7,2415.0,0.14891331]
[1769898522193,0.14980947,2415.6,2414.9,6.47144388]
[1769898522394,0.14980947,2415.6,2414.9,2.46952321]
[1769898522595,0.14980947,2415.6,2414.9,2.61559328]
[1769898523193,0.20725,2415.7,2415.0,0.14607007]
[1769898524393,0.20725,2415.7,2415.0,4.11927189]
[1769898524798,0.20725,2415.7,2415.0,0.14607007]
[1769898525096,0.20725,2415.7,2415.0,2.61559328]
[1769898525297,0.20725,2415.7,2415.1,4.09871389]
[1769898525489,0.20725,2415.7,2415.0,2.61559328]
[1769898525688,0.20725,2415.7,2415.1,4.09952988]
[1769898525998,0.20725,2415.7,2415.2,0.14607007]
[1769898526200,0.14980947,2416.0,2415.4,0.14607007]
[1769898527397,0.36138572,2416.2,2415.4,0.14607007]
[1769898527699,0.36138572,2416.2,2415.5,0.14607007]
[1769898529599,0.36138572,2416.2,2415.5,2.61559328]
[1769898529797,0.21157625,2416.2,2415.6,6.61610006]
[1769898529996,0.13210209,2416.2,2415.7,6.61610006]
[1769898530197,0.13210209,2416.2,2415.8,0.14607007]
[1769898530495,8.58014882,2417.3,2415.9,4.00379895]
[1769898530496,3.87980947,2416.6,2415.9,4.00379895]
[1769898530698,0.14980947,2416.5,2415.8,2.61559328]
[1769898530897,0.15409918,2416.5,2415.9,6.47330453]
[1769898531097,0.15409918,2416.5,2415.8,0.14607007]
[1769898531098,0.15409918,2416.5,2415.8,2.61559328]
[1769898531399,0.15409918,2416.5,2415.9,6.45847321]
[1769898531596,0.15409918,2416.5,2415.9,2.46952321]
[1769898532600,0.00428971,2416.5,2415.9,2.61559328]
[1769898532800,0.15409918,2416.5,2415.8,0.14607007]
[1769898533001,0.15409918,2416.5,2415.8,2.46952321]
[1769898533195,0.14980947,2416.3,2415.6,3.7161957]
[1769898533397,0.14980947,2416.3,2415.5,3.7161957]
[1769898533694,0.14980947,2416.3,2415.6,3.96373701]
[1769898533900,0.14980947,2416.3,2415.5,3.7161957]
[1769898534097,0.14980947,2416.3,2415.6,3.96346708]
[1769898534302,0.14980947,2416.2,2415.5,3.7161957]
[1769898534501,0.14980947,2416.2,2415.6,3.88548097]
[1769898534702,0.14980947,2416.2,2415.5,3.7161957]
[1769898534902,0.14980947,2416.2,2415.6,3.88562612]
[1769898535203,0.14980947,2416.2,2415.4,3.86226577]
[1769898535404,0.35701947,2416.3,2415.6,0.14607007]
[1769898536298,0.00428971,2416.5,2415.6,0.14607007]
[1769898536605,0.00428971,2416.5,2415.8,0.14607007]
[1769898537004,0.15409918,2416.5,2415.8,0.14607007]
[1769898540503,0.00428971,2416.5,2415.8,0.14607007]
[1769898542505,0.15409918,2416.5,2415.8,0.14607007]
[1769898542704,0.15409918,2416.5,2415.8,3.7567093]
[1769898542909,0.14980947,2416.3,2415.5,3.7161957]
[1769898543102,0.14980947,2416.3,2415.4,4.95854315]
[1769898543103,0.14980947,2416.3,2415.4,3.7161957]
[1769898543299,0.14980947,2416.1,2415.2,3.717026]
[1769898543504,0.14980947,2416.0,2415.0,3.7161957]
[1769898543699,0.35703947,2416.0,2415.2,0.14607007]
[1769898543905,0.14980947,2416.2,2415.4,0.14607007]
[1769898544511,0.14980947,2416.2,2415.3,3.7161957]
[1769898544512,0.14980947,2416.2,2415.5,3.84344767]
[1769898544711,0.14980947,2416.4,2415.5,0.14607007]
[1769898544914,0.14980947,2416.4,2415.5,3.6973776]
[1769898545114,0.14980947,2416.4,2415.4,3.6973776]
[1769898545306,0.14980947,2416.4,2415.5,3.84503122]
[1769898545602,0.14980947,2416.4,2415.5,0.14607007]
[1769898545805,0.14980947,2416.4,2415.5,3.84503122]
[1769898546005,0.14980947,2416.4,2415.5,0.14607007]
[1769898546203,0.14980947,2416.4,2415.5,3.84503122]
[1769898546407,0.14980947,2416.4,2415.5,0.14607007]
[1769898546606,0.14980947,2416.4,2415.5,3.84503122]
[1769898546811,0.14980947,2416.4,2415.5,0.14607007]
[1769898547012,0.14980947,2416.4,2415.5,3.84503122]
[1769898547206,0.14980947,2416.4,2415.5,0.14607007]
[1769898547407,0.14980947,2416.4,2415.5,3.84503122]
[1769898547606,0.14980947,2416.4,2415.5,0.14607007]
[1769898547807,0.14980947,2416.4,2415.6,0.14838381]
[1769898548814,0.14711226,2416.2,2415.4,3.69896115]
[1769898549009,0.14711226,2415.9,2415.3,3.66439542]
[1769898549209,0.14711226,2415.9,2415.2,0.14838381]
[1769898549411,0.14711226,2415.9,2415.0,3.86457951]
[1769898549610,0.14711226,2415.9,2415.1,0.14838381]
[1769898550314,0.14711226,2415.9,2415.2,0.14838381]
[1769898550609,0.20723,2416.0,2415.2,0.14838381]
[1769898550814,2.78859197,2416.5,2415.4,0.14838381]
[1769898551205,0.14711226,2416.4,2415.4,0.14838381]
[1769898551411,0.14711226,2416.4,2415.6,0.14838381]
[1769898554817,2.78859197,2416.5,2415.6,0.14838381]
[1769898555016,0.35859197,2416.5,2415.6,0.14838381]
[1769898555215,0.14711226,2416.4,2415.5,3.86457951]
[1769898555418,0.14711226,2416.4,2415.6,3.86033663]
[1769898555618,0.14711226,2416.4,2415.7,3.71195282]
[1769898555619,0.14711226,2416.3,2415.7,3.71195282]
[1769898555817,0.14711226,2416.3,2415.6,0.14838381]
[1769898556018,0.14711226,2416.3,2415.7,3.71205294]
[1769898556218,0.14711226,2416.3,2415.6,0.14838381]
[1769898556418,0.14711226,2416.3,2415.7,3.71209003]
[1769898556720,1.58899447,2416.4,2415.8,3.84818641]
[1769898556915,1.58899447,2416.4,2415.7,0.14838381]
[1769898557115,1.58899447,2416.4,2415.8,3.84888178]
[1769898557316,1.58899447,2416.4,2415.7,0.14838381]
[1769898557513,1.73610673,2416.4,2415.8,3.85069415]
[1769898557717,1.73610673,2416.4,2415.7,0.14838381]
[1769898557921,1.73610673,2416.4,2415.8,3.85126017]
[1769898558222,1.73610673,2416.4,2415.7,0.14838381]
[1769898558515,1.73610673,2416.4,2415.8,3.85225303]
[1769898558722,1.73610673,2416.4,2415.7,0.14838381]
[1769898558916,1.73610673,2416.4,2415.8,3.82219488]
[1769898559118,1.73610673,2416.4,2415.7,0.14838381]
[1769898559318,1.73610673,2416.4,2415.8,3.82217939]
[1769898559622,1.73610673,2416.4,2415.7,0.14838381]
[1769898559815,1.73610673,2416.4,2415.8,3.82224628]
[1769898560015,1.73610673,2416.4,2415.7,0.14838381]
[1769898560212,1.73610673,2416.4,2415.8,3.8217519]
[1769898560416,1.73610673,2416.4,2415.7,0.14838381]
[1769898560617,0.21147971,2416.5,2415.9,0.14838381]
[1769898560823,0.21147971,2416.5,2416.0,3.97006996]
[1769898561121,0.35859197,2416.5,2416.0,0.14838381]
[1769898562220,0.21147971,2416.5,2416.0,0.14838381]
[1769898562418,0.35859197,2416.5,2416.0,0.14838381]
[1769898562921,0.35859197,2416.5,2415.9,3.7161957]
[1769898563116,0.35859197,2416.5,2416.0,3.90821903]
[1769898563323,0.35859197,2416.5,2415.9,3.7161957]
[1769898563517,0.35859197,2416.5,2416.0,3.90786814]
[1769898563721,0.35859197,2416.5,2415.9,3.86457951]
[1769898563922,0.35859197,2416.5,2416.0,3.90715197]
[1769898564123,0.35859197,2416.5,2415.9,3.86457951]
[1769898564319,0.07204753,2416.8,2416.1,0.14838381]
[1769898564523,0.35426226,2416.9,2416.3,0.14838381]
[1769898564723,0.14711226,2416.8,2416.1,3.7161957]
[1769898564925,0.14711226,2416.8,2416.2,3.90694811]
[1769898565121,0.14711226,2416.8,2416.1,3.86457951]
[1769898565321,0.15170874,2416.8,2416.2,3.9059503]
[1769898565516,0.15170874,2416.8,2416.1,0.14838381]
[1769898565725,0.15170874,2416.8,2416.2,4.02832525]
[1769898565925,0.00459648,2416.8,2416.2,0.14838381]
[1769898566726,0.00459648,2416.8,2416.4,0.14838381]
[1769898568224,0.43703824,2416.9,2416.4,0.14838381]
[1769898568420,0.20712,2417.3,2416.4,0.14838381]
[1769898568819,0.20712,2417.3,2416.6,0.14838381]
[1769898569223,0.21109216,2417.3,2416.6,0.15286658]
[1769898570216,0.35820442,2417.3,2416.6,0.15286658]
[1769898570721,0.35820442,2417.3,2416.7,3.84439743]
[1769898570922,0.35820442,2417.3,2416.6,0.15286658]
[1769898571123,0.35820442,2417.3,2416.7,3.84469762]
[1769898571323,0.35820442,2417.3,2416.6,0.15286658]
[1769898571728,0.21109216,2417.3,2416.6,0.15286658]
[1769898572120,0.21109216,2417.3,2416.7,3.84210003]
[1769898572323,0.21109216,2417.3,2416.8,0.14838381]
[1769898573631,0.20708,2417.8,2417.0,0.14838381]
[1769898573823,0.14711226,2417.9,2417.1,0.14838381]
[1769898574026,3.728,2418.0,2417.1,0.14838381]
[1769898574328,2.429,2418.5,2417.0,3.7161957]
[1769898574329,0.35414226,2418.3,2417.3,0.14838381]
[1769898574529,0.14711226,2418.3,2417.4,0.14838381]
[1769898574823,0.14711226,2418.3,2417.6,0.14838381]
[1769898574824,0.15197071,2418.3,2417.6,0.14838381]
[1769898575028,0.15197071,2418.3,2417.6,4.0726183]
[1769898575322,0.15197071,2418.3,2417.6,0.14838381]
[1769898575529,0.00485845,2418.3,2417.6,0.14838381]
[1769898575723,0.35410226,2418.8,2417.7,0.14838381]
[1769898575924,0.20699,2418.8,2417.7,0.14838381]
[1769898576124,0.20699,2418.8,2417.7,4.0726183]
[1769898576326,0.20699,2418.8,2417.8,0.14838381]
[1769898576523,0.14711226,2419.1,2417.9,0.14838381]
[1769898576725,0.151262,2419.1,2417.9,0.14838381]
[1769898577030,0.00414974,2419.1,2418.2,3.86761135]
[1769898577228,3.87381121,2419.9,2418.4,0.15141565]
[1769898577429,4.30172203,2419.9,2418.4,0.15141565]
[1769898578231,0.43093295,2419.9,2418.5,0.15141565]
[1769898578627,0.00302213,2419.9,2418.5,4.07462135]
[1769898578923,0.00302213,2419.9,2418.8,0.15141565]
[1769898579132,0.00302213,2419.9,2418.8,3.86761135]
[1769898579323,0.00302213,2419.9,2418.8,0.15141565]
[1769898579324,0.14983334,2419.9,2418.8,0.15141565]
[1769898580032,0.14681121,2419.8,2418.8,0.15141565]
[1769898580225,0.14681121,2419.7,2418.8,0.15141565]
[1769898580625,0.14681121,2419.6,2418.5,0.15141565]
[1769898581224,0.14681121,2419.5,2418.5,0.15141565]
[1769898581727,0.00302213,2419.9,2418.4,0.00321277]
[1769898581728,0.15421616,2419.4,2418.4,0.00321277]
[1769898582626,0.15421616,2419.4,2418.5,0.15688677]
[1769898582822,0.15421616,2419.0,2417.7,0.15688677]
[1769898583121,0.15421616,2418.9,2417.7,0.15688677]
[1769898583926,0.15421616,2418.9,2417.7,0.1610378]
[1769898585436,0.20698,2419.0,2417.7,0.1610378]
[1769898586232,0.36119616,2419.0,2417.7,0.1610378]
[1769898587033,0.20698,2419.0,2417.7,0.1610378]
[1769898587234,2.428,2419.4,2417.7,0.1610378]
[1769898587437,0.20693,2419.5,2417.9,0.15688677]
[1769898587630,0.20693,2419.5,2418.1,0.15688677]
[1769898587827,3.72902213,2419.9,2418.3,0.36391677]
[1769898588029,3.72902213,2419.9,2418.5,0.15688677]
[1769898588230,0.15421616,2419.8,2418.5,0.15688677]
[1769898588534,0.15421616,2419.6,2418.5,0.15688677]
[1769898590738,0.36112616,2419.7,2418.5,0.15688677]
[1769898592138,0.00302213,2419.9,2418.5,0.15688677]
[1769898592540,0.00302213,2419.9,2418.5,8.02308247]
[1769898592735,0.00302213,2419.9,2418.7,0.15688677]
[1769898592944,0.15723829,2419.9,2418.8,0.15688677]
[1769898593637,0.15723829,2419.9,2418.9,0.15688677]
[1769898593837,0.00302213,2419.9,2418.9,0.15688677]
[1769898595035,0.15723829,2419.9,2418.9,0.15688677]
[1769898595435,0.00302213,2419.9,2419.0,0.15688677]
[1769898596837,0.15723829,2419.9,2419.0,0.15688677]
[1769898597039,0.15723829,2419.9,2419.1,0.15688677]
[1769898598342,0.00302213,2419.9,2419.1,0.15688677]
[1769898598543,0.00302213,2419.9,2419.2,0.15688677]
[1769898598744,0.00302213,2419.9,2419.2,2.58173384]
[1769898599236,0.15421616,2419.8,2419.2,6.32138328]
[1769898599445,0.00302213,2419.9,2419.3,0.15688677]
[1769898599943,0.00302213,2419.9,2419.2,6.32138328]
[1769898600445,0.00302213,2419.9,2419.3,6.32138328]
[1769898600846,0.00302213,2419.9,2419.2,6.32138328]
[1769898601347,0.00302213,2419.9,2419.3,6.32138328]
[1769898601536,0.00302213,2419.9,2419.3,2.42484707]
[1769898602140,0.00302213,2419.9,2419.3,4.08838846]
[1769898602337,0.15723829,2419.9,2419.3,2.42484707]
[1769898602538,0.15421616,2419.6,2418.9,3.7161957]
[1769898602847,0.15421616,2419.5,2418.8,3.7161957]
[1769898603045,0.15421616,2419.5,2418.9,4.12286401]
[1769898603246,0.15421616,2419.5,2419.0,4.12867047]
[1769898603449,0.00302213,2419.9,2419.2,3.87308247]
[1769898603644,0.00302213,2419.9,2419.4,0.15688677]
[1769898603840,0.67132959,2420.3,2419.6,0.15688677]
[1769898604046,0.82554575,2420.3,2419.6,0.15688677]
[1769898604444,0.15421616,2420.2,2419.4,3.87308247]
[1769898604645,0.15421616,2420.2,2419.5,3.99876928]
[1769898604944,0.15811403,2420.2,2419.6,3.99876928]
[1769898605145,0.15811403,2420.2,2419.5,0.0032069]
[1769898605344,0.15811403,2420.2,2419.6,3.99985807]
[1769898605547,0.15811403,2420.2,2419.5,3.7194026]
[1769898605739,0.15811403,2420.2,2419.6,4.00139007]
[1769898605938,0.15811403,2420.2,2419.5,3.87628937]
[1769898606143,0.15811403,2420.2,2419.6,3.98819447]
[1769898606347,0.15811403,2420.2,2419.5,3.87628937]
[1769898606550,0.15811403,2420.2,2419.6,3.98950403]
[1769898606744,0.15811403,2420.2,2419.7,3.99152349]
[1769898607047,0.15811403,2420.2,2419.5,3.87628937]
[1769898607247,0.15811403,2420.2,2419.6,3.99091889]
[1769898607548,0.15811403,2420.2,2419.5,3.87628937]
[1769898607748,0.15811403,2420.2,2419.6,3.99068787]
[1769898608046,0.15211667,2419.9,2419.2,3.7161957]
[1769898608349,0.15211667,2419.9,2419.1,3.7161957]
[1769898608350,0.15211667,2419.8,2419.1,3.7161957]
[1769898608552,0.35901667,2419.8,2419.2,3.99324521]
[1769898608843,0.15211667,2419.2,2418.4,4.95854315]
[1769898609043,0.15211667,2419.2,2418.5,3.91119764]
[1769898609246,0.15211667,2419.0,2418.1,8.68154315]
[1769898609443,0.15211667,2419.0,2417.7,4.95854315]
[1769898609948,0.15211667,2419.0,2417.6,5.10463028]
[1769898610148,0.15211667,2418.7,2417.7,0.14608713]
[1769898610344,0.35905667,2419.4,2417.8,0.14608713]
[1769898610545,0.15211667,2419.3,2418.3,0.14608713]
[1769898611754,0.15211667,2419.3,2418.4,0.14608713]
[1769898612142,0.20694,2419.4,2418.6,3.86228283]
[1769898612348,0.20694,2419.4,2418.6,0.14608713]
[1769898612550,0.20694,2419.4,2418.6,3.86228283]
[1769898612750,0.15211667,2419.9,2418.9,0.14608713]
[1769898613456,0.15211667,2419.7,2418.6,5.10463028]
[1769898613951,0.35902667,2419.8,2418.9,0.14608713]
[1769898614954,0.35902667,2419.8,2418.9,3.86228283]
[1769898617454,0.15211667,2419.7,2418.7,3.837]
[1769898617656,0.15211667,2419.7,2418.8,0.14608713]
[1769898617851,0.20691,2419.8,2418.8,3.86228283]
[1769898618057,0.35902667,2419.8,2419.0,0.14608713]
[1769898618651,0.35902667,2419.8,2419.0,3.86228283]
[1769898619456,0.15211667,2420.1,2419.1,3.86228283]
[1769898619654,0.15211667,2420.1,2419.1,0.14608713]
[1769898621255,0.15211667,2420.1,2419.2,3.93071964]
[1769898621455,0.15211667,2420.6,2419.7,0.14608713]
[1769898621662,0.20683,2420.7,2419.9,0.14608713]
[1769898621854,0.15211667,2420.6,2419.6,5.10463028]
[1769898622162,0.15211667,2420.6,2419.7,3.92837546]
[1769898622456,0.1569086,2420.6,2419.8,3.92837546]
[1769898622657,0.1569086,2420.6,2419.7,0.00310567]
[1769898622954,0.1569086,2420.6,2419.3,10.55137545]
[1769898622955,0.15211667,2420.2,2419.4,3.92835248]
[1769898623157,0.15211667,2420.2,2419.1,4.95854315]
[1769898623158,0.15211667,2420.2,2419.1,0.14608713]
[1769898623354,0.15211667,2420.4,2419.5,0.14608713]
[1769898623760,0.15211667,2420.4,2419.6,3.86228283]
[1769898623955,0.15211667,2420.4,2419.6,0.15129879]
[1769898624259,0.15211667,2420.4,2419.7,3.7161957]
[1769898624655,0.15211667,2420.4,2419.8,3.7161957]
[1769898624854,0.15211667,2420.4,2419.7,3.7161957]
[1769898625255,0.15211667,2420.4,2419.8,3.7161957]
[1769898625456,0.00479193,2420.6,2419.8,0.14608713]
[1769898625660,0.00479193,2420.6,2420.0,0.14608713]
[1769898626058,0.00479193,2420.6,2420.0,3.86228283]
[1769898626850,0.00479193,2420.6,2420.1,0.14608713]
[1769898627260,0.1569086,2420.6,2420.2,3.7161957]
[1769898627458,0.1569086,2420.6,2419.8,0.14608713]
[1769898627459,0.1569086,2420.6,2420.0,3.7161957]
[1769898627657,0.00479193,2420.6,2420.2,3.7161957]
[1769898627965,0.00479193,2420.6,2420.1,3.86228283]
[1769898628159,0.00479193,2420.6,2419.9,3.7161957]
[1769898628660,0.1569086,2420.6,2420.0,3.7161957]
[1769898629162,0.00479193,2420.6,2420.1,3.7161957]
[1769898629356,0.00479193,2420.6,2420.0,3.7161957]
[1769898629856,0.00479193,2420.6,2420.1,3.7161957]
[1769898630057,0.00479193,2420.6,2420.0,3.7161957]
[1769898630263,0.00479193,2420.6,2420.0,3.86228283]
[1769898630561,0.00479193,2420.6,2420.1,3.86228283]
[1769898630764,0.00479193,2420.6,2420.1,0.14608713]
[1769898631060,0.00479193,2420.6,2420.1,3.86228283]
[1769898632561,0.16189414,2422.0,2420.7,3.7161957]
[1769898632868,0.16189414,2422.4,2420.4,2.426]
[1769898633060,0.36860414,2422.1,2420.4,7.38454315]
[1769898633266,0.16189414,2422.0,2420.4,7.38454315]
[1769898633563,0.16550365,2422.0,2420.8,3.7161957]
[1769898633861,0.16550365,2422.0,2421.1,3.7161957]
[1769898634267,0.16550365,2422.0,2421.2,3.7161957]
[1769898634564,0.16174161,2421.9,2420.9,3.7161957]
[1769898634958,0.16174161,2421.9,2421.1,3.7161957]
[1769898635153,0.16174161,2421.9,2420.5,8.8429692]
[1769898635154,0.00360951,2422.0,2421.5,3.7161957]
[1769898635357,0.47742527,2422.0,2421.5,0.00530539]
[1769898635558,0.16174161,2421.9,2421.5,3.71089031]
[1769898635960,0.16174161,2421.9,2421.1,0.00157171]
[1769898636160,0.47742527,2422.0,2421.2,0.00157171]
[1769898636465,0.16110828,2421.9,2421.3,2.33169173]
[1769898636662,0.16110828,2421.8,2421.2,0.00342918]
[1769898638266,0.20673,2421.9,2421.2,0.00342918]
[1769898638465,0.47742527,2422.0,2421.4,2.33169173]
[1769898638666,0.63999363,2422.0,2421.4,2.33169173]
[1769898638861,0.16256836,2421.9,2421.2,0.00342918]
[1769898639063,0.16256836,2421.9,2421.3,2.33169173]
[1769898639263,0.16256836,2421.9,2421.4,2.33169173]
[1769898639661,0.15560101,2421.6,2421.2,0.00342918]
[1769898639865,0.15560101,2421.5,2420.1,4.03045755]
[1769898640070,0.15560101,2421.5,2420.3,0.1460315]
[1769898640467,0.15560101,2421.5,2420.4,2.16912288]
[1769898640966,0.15560101,2421.5,2420.4,2.17338141]
[1769898641360,0.15878487,2421.1,2420.4,0.00425853]
[1769898641765,2.425,2421.8,2419.7,3.79050425]
[1769898641766,0.15878487,2420.9,2419.7,0.15304171]
[1769898641965,0.15878487,2420.8,2419.5,2.57804171]
[1769898642168,0.15878487,2420.8,2419.6,2.16912288]
[1769898642369,0.15878487,2420.8,2419.7,2.16912288]
[1769898642770,0.15878487,2420.8,2419.8,2.16912288]
[1769898643170,0.15878487,2420.8,2419.8,0.15304171]
[1769898643369,0.20681,2420.9,2420.0,2.32216459]
[1769898643569,0.20681,2420.9,2420.0,0.15304171]
[1769898643769,0.20681,2420.9,2420.1,2.16912288]
[1769898644170,0.36559487,2420.9,2420.2,2.16912288]
[1769898644368,0.15878487,2420.8,2420.2,2.16912288]
[1769898644769,0.15878487,2420.8,2420.3,2.16912288]
[1769898644965,0.15878487,2420.8,2419.7,3.79506511]
[1769898644966,0.15878487,2420.8,2419.9,2.16912288]
[1769898645171,0.15878487,2420.6,2419.7,0.00456086]
[1769898645572,0.15878487,2420.6,2419.8,2.16912288]
[1769898645974,0.15878487,2420.6,2419.9,2.16912288]
[1769898646175,0.15878487,2420.6,2419.8,2.16912288]
[1769898646576,0.15878487,2420.6,2419.9,2.16912288]
[1769898646772,0.15878487,2420.6,2419.8,2.16912288]
[1769898646972,0.15878487,2420.6,2419.9,2.16912288]
[1769898647471,0.15878487,2420.6,2420.0,2.16912288]
[1769898647774,0.15878487,2420.6,2419.9,2.16912288]
[1769898648270,0.15878487,2420.6,2420.0,2.16912288]
[1769898648476,0.15878487,2420.6,2419.9,2.16912288]
[1769898648976,0.15878487,2420.6,2420.0,2.16912288]
[1769898649179,0.15878487,2420.6,2419.9,2.16912288]
[1769898650178,0.15878487,2420.6,2420.0,2.16912288]
[1769898650380,0.15878487,2420.6,2419.9,2.16912288]
[1769898650978,0.15878487,2420.6,2420.0,2.16912288]
[1769898651180,0.15878487,2420.6,2419.9,2.16912288]
[1769898651579,0.15878487,2420.6,2420.0,2.16912288]
[1769898651876,0.15878487,2420.6,2419.7,0.00456086]
[1769898651877,0.15878487,2420.6,2419.9,2.16912288]
[1769898652676,0.15878487,2420.6,2420.0,2.16912288]
[1769898652871,0.15878487,2420.6,2419.9,2.16912288]
[1769898653380,0.15878487,2420.6,2420.0,2.16912288]
[1769898653576,0.15878487,2420.6,2419.9,2.16912288]
[1769898653978,0.15878487,2420.6,2420.0,2.16912288]
[1769898654178,0.15878487,2420.6,2419.9,2.16912288]
[1769898654580,0.15878487,2420.6,2420.0,2.16912288]
[1769898654778,0.15878487,2420.6,2419.9,2.16912288]
[1769898655282,0.15878487,2420.1,2419.3,0.15304171]
[1769898655481,0.15878487,2420.1,2419.0,3.63746254]
[1769898655482,0.15878487,2419.9,2419.0,4.21355314]
[1769898655683,0.15878487,2419.9,2418.9,4.06051143]
[1769898656179,0.16367605,2419.9,2418.9,0.0032902]
[1769898656877,0.15878487,2419.8,2418.9,0.15633191]
[1769898657081,0.21179118,2419.9,2418.9,0.15633191]
[1769898660481,0.00489118,2419.9,2418.9,0.15633191]
[1769898661778,0.16367605,2419.9,2418.9,0.15633191]
[1769898662379,0.15878487,2419.8,2418.9,0.15633191]
[1769898664592,0.15878487,2419.6,2418.6,0.15304171]
[1769898665587,0.15878487,2419.6,2418.6,0.15800152]
[1769898666292,0.36570487,2419.6,2418.6,0.15800152]
[1769898666687,0.15878487,2419.4,2418.6,0.00495981]
[1769898666892,0.15878487,2419.1,2418.3,0.15304171]
[1769898667092,0.36575487,2419.1,2418.3,0.15304171]
[1769898667288,0.15630482,2419.0,2418.1,0.15596868]
[1769898667586,0.15630482,2418.9,2418.0,0.15596868]
[1769898667787,0.15630482,2418.9,2418.0,0.15970203]
[1769898667982,0.20701,2418.6,2418.0,0.00373335]
[1769898668184,0.15630482,2418.5,2417.7,0.15596868]
[1769898669191,0.15630482,2418.5,2417.7,0.15932646]
[1769898669592,0.15630482,2418.5,2417.7,0.00335778]
[1769898670691,0.15630482,2418.5,2417.7,0.15932646]
[1769898670895,0.20701,2418.6,2417.7,0.15932646]
[1769898672300,0.15630482,2418.8,2417.7,0.15932646]
[1769898675199,0.15630482,2418.7,2417.7,0.15932646]
[1769898677799,0.15630482,2418.6,2417.7,0.15932646]
[1769898678191,0.20702,2418.5,2417.4,0.15596868]
[1769898678391,0.15630482,2418.4,2417.4,0.15596868]
[1769898678902,0.15630482,2418.3,2417.4,0.15596868]
[1769898679098,0.15630482,2418.1,2417.2,0.15596868]
[1769898679402,0.15630482,2418.0,2417.2,0.16027772]
[1769898679904,0.21067084,2418.1,2417.2,0.16027772]
[1769898682604,0.36697566,2418.1,2417.2,0.16027772]
[1769898683505,0.36697566,2418.1,2417.3,0.15596868]
[1769898684409,0.15630482,2418.0,2417.3,0.15596868]
[1769898685104,0.15630482,2418.0,2417.2,0.00430904]
[1769898685105,0.15630482,2417.9,2417.2,0.00430904]
[1769898691917,0.36337482,2417.9,2417.2,0.00430904]
[1769898692122,0.15630482,2417.9,2416.7,6.27761893]
[1769898692311,0.00362084,2418.1,2416.5,3.63746254]
[1769898692312,0.15630482,2417.3,2416.5,3.63746254]
[1769898692519,0.15630482,2417.0,2416.2,0.15596868]
[1769898693115,0.15630482,2416.9,2416.2,0.00481602]
[1769898693424,4.93745775,2417.9,2415.7,0.15596868]
[1769898693425,0.15630482,2416.5,2415.7,0.15596868]
[1769898693625,0.15630482,2416.5,2415.5,0.15596868]
[1769898694123,0.20721,2416.3,2415.3,0.15596868]
[1769898694320,0.20721,2416.3,2415.4,0.15596868]
[1769898694321,0.00374556,2416.3,2415.4,0.15596868]
[1769898694531,0.15630482,2417.0,2415.8,0.15596868]
[1769898694826,0.15630482,2417.0,2415.9,0.15596868]
[1769898695026,0.36344482,2417.1,2415.9,0.15596868]
[1769898695228,0.36344482,2417.1,2416.0,0.15596868]
[1769898695526,0.15630482,2417.0,2416.0,0.15596868]
[1769898696720,0.15630482,2416.9,2415.7,0.15596868]
[1769898699029,0.15630482,2416.9,2415.8,0.14789532]
[1769898702632,0.15054618,2416.8,2415.8,0.14789532]
[1769898704135,0.15054618,2416.8,2415.6,3.837]
[1769898704136,0.15054618,2416.6,2415.4,3.63746254]
[1769898704431,0.15054618,2416.6,2415.4,0.15029926]
[1769898706031,0.15054618,2416.5,2415.4,0.15029926]
[1769898706732,0.15054618,2417.0,2415.5,0.15029926]
[1769898706935,0.15054618,2417.0,2415.6,0.15029926]
[1769898707931,0.21140332,2417.1,2415.4,7.43058826]
[1769898707932,0.15054618,2416.7,2415.4,7.43058826]
[1769898708138,0.15054618,2416.7,2415.4,7.58088752]
[1769898708337,0.15054618,2416.7,2415.5,0.15029926]
[1769898709231,0.15054618,2416.7,2415.4,7.43058826]
[1769898709232,0.15054618,2416.3,2415.4,7.43058826]
[1769898709437,0.15054618,2416.3,2415.3,0.00513637]
[1769898710528,0.15054618,2416.3,2415.3,0.15543563]
[1769898713236,0.15054618,2415.9,2414.9,3.94342498]
[1769898713430,0.15054618,2415.9,2415.0,0.15029926]
[1769898714237,0.15054618,2415.9,2415.0,0.15381969]
[1769898714736,0.20723,2416.0,2415.0,0.15381969]
[1769898714938,0.15054618,2416.4,2415.3,0.15029926]
[1769898715739,0.15054618,2416.4,2415.4,0.15029926]
[1769898715938,0.15054618,2416.7,2415.6,0.15029926]
[1769898716752,0.15054618,2416.7,2415.7,3.94342498]
[1769898717238,0.15054618,2416.7,2415.7,0.15029926]
[1769898717932,0.15054618,2416.7,2415.9,3.63746254]
[1769898718138,0.15054618,2416.6,2415.4,0.15029926]
[1769898719741,0.35770618,2416.8,2415.4,0.15029926]
[1769898719942,0.35770618,2416.8,2415.4,5.10884241]
[1769898720143,0.35770618,2416.8,2415.5,0.15029926]
[1769898720344,0.35770618,2416.8,2415.6,0.15029926]
[1769898720746,0.15054618,2416.7,2415.6,0.15029926]
[1769898721739,0.20712,2417.3,2416.2,0.15029926]
[1769898722144,0.15054618,2417.6,2416.2,5.10884241]
[1769898722338,0.20707,2417.8,2416.6,0.15029926]
[1769898723045,0.35761618,2417.8,2416.6,0.15029926]
[1769898723343,0.36087812,2417.8,2416.6,0.15029926]
[1769898723546,0.00326194,2417.8,2416.9,0.15029926]
[1769898723747,0.00326194,2417.8,2416.9,0.15411789]
[1769898725948,0.15054618,2417.7,2416.9,0.00381863]
[1769898726354,0.15054618,2417.7,2416.3,0.15029926]
[1769898726947,0.14706599,2417.3,2416.1,0.14996184]
[1769898727347,0.20715,2417.0,2416.1,0.00417094]
[1769898727550,0.14706599,2416.9,2416.1,0.00417094]
[1769898728556,0.14706599,2416.8,2415.8,0.14996184]
[1769898728756,0.14706599,2416.6,2415.5,0.14996184]
[1769898729552,0.14706599,2416.6,2415.5,0.15452177]
[1769898730147,0.35426599,2416.4,2415.5,0.00455993]
[1769898730354,0.14706599,2416.3,2415.5,0.00455993]
[1769898733053,0.14706599,2416.1,2415.0,3.90464275]